[Event "Saint Louis Masters"]
[Date "2024.12.07"]
[White "Saric, Ivan"]
[Black "Heimann, Mark"]
[WhiteElo "2669"]
[BlackElo "2459"]
[Round "9.6"]
[Result "1-0"]
[TimeControl "5400+30"]

1. Nf3 {[%clk 01:30:56] [%emt 00:00:03]} d5 {[%clk 01:28:54] [%emt 00:02:07]} 2.
g3 {[%clk 01:31:20] [%emt 00:00:06]} Nf6 {[%clk 01:28:38] [%emt 00:00:46]} 3.
Bg2 {[%clk 01:31:44] [%emt 00:00:05]} c5 {[%clk 01:28:53] [%emt 00:00:16]} 4.
O-O {[%clk 01:31:58] [%emt 00:00:16]} e6 {[%clk 01:28:55] [%emt 00:00:28]} 5. c4
{[%clk 01:31:19] [%emt 00:01:09]} dxc4 {[%clk 01:24:07] [%emt 00:05:19]} 6. Na3
{[%clk 01:30:38] [%emt 00:01:10]} Bd7 {[%clk 01:24:26] [%emt 00:00:11]} 7. Ne5
{[%clk 01:26:51] [%emt 00:04:17]} Qc7 {[%clk 01:24:48] [%emt 00:00:08]} 8. Naxc4
{[%clk 01:26:36] [%emt 00:00:44]} Nc6 {[%clk 01:25:12] [%emt 00:00:06]} 9. d4
{[%clk 01:17:24] [%emt 00:09:43]} Nxd4 {[%clk 01:00:19] [%emt 00:25:23]} 10. Bf4
{[%clk 01:17:11] [%emt 00:00:42]} Nh5 {[%clk 00:57:49] [%emt 00:03:00]} 11. e3
{[%clk 01:01:38] [%emt 00:16:04]} Nxf4 {[%clk 00:58:04] [%emt 00:00:15]} 12.
gxf4 {[%clk 01:02:05] [%emt 00:00:03]} Nc6 {[%clk 00:57:27] [%emt 00:01:07]} 13.
Nxd7 {[%clk 00:58:20] [%emt 00:04:14]} Qxd7 {[%clk 00:57:51] [%emt 00:00:06]}
14. Qa4 {[%clk 00:39:36] [%emt 00:19:14]} Rc8 {[%clk 00:51:11] [%emt 00:07:10]}
15. Rfd1 {[%clk 00:39:51] [%emt 00:00:15]} Qc7 {[%clk 00:51:31] [%emt 00:00:11]}
16. Rd3 {[%clk 00:33:03] [%emt 00:07:17]} Be7 {[%clk 00:47:56] [%emt 00:04:05]}
17. Rad1 {[%clk 00:33:28] [%emt 00:00:05]} O-O {[%clk 00:42:42] [%emt 00:05:44]}
18. Rd7 {[%clk 00:33:19] [%emt 00:00:39]} Qb8 {[%clk 00:43:08] [%emt 00:00:04]}
19. Qb3 {[%clk 00:26:12] [%emt 00:07:37]} Bf6 {[%clk 00:32:48] [%emt 00:10:50]}
20. Rxb7 {[%clk 00:26:22] [%emt 00:00:21]} Qa8 {[%clk 00:33:14] [%emt 00:00:04]}
21. Rdd7 {[%clk 00:21:24] [%emt 00:05:27]} Nd8 {[%clk 00:21:27] [%emt 00:12:17]}
22. Rb5 {[%clk 00:21:30] [%emt 00:00:24]} Nc6 {[%clk 00:21:52] [%emt 00:00:06]}
23. Rxc5 {[%clk 00:21:42] [%emt 00:00:17]} Rfd8 {[%clk 00:21:02] [%emt
00:01:19]} 24. Rxd8+ {[%clk 00:21:55] [%emt 00:00:18]} Bxd8 {[%clk 00:21:26]
[%emt 00:00:06]} 25. Qa4 {[%clk 00:21:38] [%emt 00:00:47]} 1-0

[Site "Europe Echecs"]

[Event "Saint Louis Masters"]
[Date "2024.12.07"]
[White "Cordova, Emilio"]
[Black "Mishra, Abhimanyu"]
[WhiteElo "2531"]
[BlackElo "2616"]
[Round "9.7"]
[Result "1/2-1/2"]
[TimeControl "5400+30"]

1. Nf3 {[%clk 01:30:33] [%emt 00:00:25]} Nf6 {[%clk 01:29:38] [%emt 00:01:24]}
2. b3 {[%clk 01:30:08] [%emt 00:00:54]} d5 {[%clk 01:28:45] [%emt 00:01:23]} 3.
e3 {[%clk 01:29:29] [%emt 00:01:08]} Bf5 {[%clk 01:26:51] [%emt 00:02:25]} 4.
Be2 {[%clk 01:29:19] [%emt 00:00:38]} h6 {[%clk 01:26:51] [%emt 00:00:32]} 5. c4
{[%clk 01:25:34] [%emt 00:04:15]} e6 {[%clk 01:25:52] [%emt 00:01:30]} 6. cxd5
{[%clk 01:22:40] [%emt 00:03:23]} exd5 {[%clk 01:24:58] [%emt 00:01:25]} 7. Bb2
{[%clk 01:21:02] [%emt 00:02:06]} Bd6 {[%clk 01:19:27] [%emt 00:06:01]} 8. O-O
{[%clk 01:17:11] [%emt 00:04:22]} O-O {[%clk 01:17:18] [%emt 00:02:39]} 9. Re1
{[%clk 01:14:16] [%emt 00:03:24]} Nbd7 {[%clk 01:13:06] [%emt 00:04:44]} 10. Na3
{[%clk 01:08:57] [%emt 00:05:47]} c6 {[%clk 01:08:22] [%emt 00:05:15]} 11. Nc2
{[%clk 01:08:59] [%emt 00:00:27]} a5 {[%clk 01:07:39] [%emt 00:01:14]} 12. d3
{[%clk 01:08:25] [%emt 00:01:03]} Re8 {[%clk 01:06:01] [%emt 00:02:08]} 1/2-1/2

[Site "Europe Echecs"]

[Event "Saint Louis Masters"]
[Date "2024.12.07"]
[White "Theodorou, Nikolas"]
[Black "Woodward, Andy"]
[WhiteElo "2600"]
[BlackElo "2530"]
[Round "9.8"]
[Result "0-1"]
[TimeControl "5400+30"]

1. Nf3 {[%clk 01:27:50] [%emt 00:02:29]} Nf6 {[%clk 01:30:43] [%emt 00:00:18]}
2. c4 {[%clk 01:28:13] [%emt 00:00:07]} g6 {[%clk 01:30:55] [%emt 00:00:17]} 3.
b3 {[%clk 01:26:42] [%emt 00:02:02]} Bg7 {[%clk 01:29:05] [%emt 00:02:19]} 4.
Bb2 {[%clk 01:27:09] [%emt 00:00:04]} O-O {[%clk 01:29:18] [%emt 00:00:16]} 5.
g3 {[%clk 01:27:31] [%emt 00:00:09]} b6 {[%clk 01:28:44] [%emt 00:01:04]} 6. Bg2
{[%clk 01:27:53] [%emt 00:00:07]} Bb7 {[%clk 01:29:08] [%emt 00:00:06]} 7. O-O
{[%clk 01:26:50] [%emt 00:01:33]} e6 {[%clk 01:23:55] [%emt 00:05:43]} 8. Nc3
{[%clk 01:23:36] [%emt 00:03:45]} d5 {[%clk 01:21:14] [%emt 00:03:11]} 9. cxd5
{[%clk 01:21:07] [%emt 00:02:59]} Nxd5 {[%clk 01:15:19] [%emt 00:06:25]} 10. Qc1
{[%clk 01:19:45] [%emt 00:01:51]} c5 {[%clk 01:13:08] [%emt 00:02:41]} 11. Rd1
{[%clk 01:19:07] [%emt 00:01:10]} Nd7 {[%clk 01:01:39] [%emt 00:11:58]} 12. Nxd5
{[%clk 01:16:25] [%emt 00:03:12]} Bxd5 {[%clk 00:59:34] [%emt 00:02:35]} 13.
Bxg7 {[%clk 01:14:02] [%emt 00:02:53]} Kxg7 {[%clk 01:00:01] [%emt 00:00:03]}
14. d4 {[%clk 01:13:30] [%emt 00:01:03]} Qf6 {[%clk 00:59:04] [%emt 00:01:26]}
15. dxc5 {[%clk 01:06:53] [%emt 00:07:07]} Nxc5 {[%clk 00:57:57] [%emt
00:01:35]} 16. Qe3 {[%clk 01:07:19] [%emt 00:00:05]} Bxf3 {[%clk 00:48:55] [%emt
00:09:32]} 17. Bxf3 {[%clk 01:06:18] [%emt 00:01:31]} Rac8 {[%clk 00:47:53]
[%emt 00:01:32]} 18. Rac1 {[%clk 01:05:03] [%emt 00:01:45]} Qb2 {[%clk 00:36:57]
[%emt 00:11:26]} 19. h4 {[%clk 00:56:10] [%emt 00:09:23]} h6 {[%clk 00:34:01]
[%emt 00:03:26]} 20. h5 {[%clk 00:45:37] [%emt 00:11:03]} g5 {[%clk 00:33:38]
[%emt 00:00:52]} 21. Rc3 {[%clk 00:45:38] [%emt 00:00:29]} Rcd8 {[%clk 00:20:56]
[%emt 00:13:12]} 22. Qe5+ {[%clk 00:43:37] [%emt 00:02:32]} Kg8 {[%clk 00:21:24]
[%emt 00:00:02]} 23. Rdc1 {[%clk 00:34:47] [%emt 00:09:20]} Qd2 {[%clk 00:20:19]
[%emt 00:01:34]} 24. Qf6 {[%clk 00:29:29] [%emt 00:05:50]} a5 {[%clk 00:14:20]
[%emt 00:06:28]} 25. e3 {[%clk 00:17:18] [%emt 00:12:40]} Qd6 {[%clk 00:07:20]
[%emt 00:07:30]} 26. Rd1 {[%clk 00:14:16] [%emt 00:03:32]} Qxd1+ {[%clk
00:07:48] [%emt 00:00:03]} 27. Bxd1 {[%clk 00:14:41] [%emt 00:00:05]} Rxd1+
{[%clk 00:08:12] [%emt 00:00:06]} 28. Kg2 {[%clk 00:15:04] [%emt 00:00:08]} Ne4
{[%clk 00:08:39] [%emt 00:00:04]} 29. Qxh6 {[%clk 00:09:32] [%emt 00:06:02]} Rd2
{[%clk 00:09:08] [%emt 00:00:01]} 30. Kf3 {[%clk 00:09:14] [%emt 00:00:47]} Nxc3
{[%clk 00:09:31] [%emt 00:00:07]} 31. Qxg5+ {[%clk 00:09:32] [%emt 00:00:13]}
Kh7 {[%clk 00:10:00] [%emt 00:00:01]} 32. Qe7 {[%clk 00:09:18] [%emt 00:00:43]}
Rg8 {[%clk 00:09:52] [%emt 00:00:39]} 33. Qxf7+ {[%clk 00:06:57] [%emt
00:02:51]} Rg7 {[%clk 00:10:21] [%emt 00:00:01]} 34. Qxe6 {[%clk 00:07:19] [%emt
00:00:07]} Nd1 {[%clk 00:10:48] [%emt 00:00:03]} 35. g4 {[%clk 00:05:46] [%emt
00:02:03]} Rxf2+ {[%clk 00:11:16] [%emt 00:00:02]} 36. Kg3 {[%clk 00:06:10]
[%emt 00:00:06]} Rf1 {[%clk 00:11:41] [%emt 00:00:04]} 37. Kg2 {[%clk 00:03:51]
[%emt 00:02:49]} Rgf7 {[%clk 00:08:51] [%emt 00:03:20]} 38. Qg6+ {[%clk
00:03:53] [%emt 00:00:28]} Kh8 {[%clk 00:09:06] [%emt 00:00:16]} 39. Qh6+ {[%clk
00:04:18] [%emt 00:00:04]} Kg8 {[%clk 00:09:28] [%emt 00:00:08]} 40. Qg6+ {[%clk
00:04:42] [%emt 00:00:06]} Kh8 {[%clk 00:09:51] [%emt 00:00:07]} 41. Qh6+ {[%clk
00:01:53] [%emt 00:03:20]} Kg8 {[%clk 00:10:15] [%emt 00:00:06]} 42. Qxb6 {[%clk
00:00:43] [%emt 00:01:39]} R1f2+ {[%clk 00:09:49] [%emt 00:00:56]} 43. Kg3
{[%clk 00:01:12] [%emt 00:00:02]} R2f3+ {[%clk 00:09:55] [%emt 00:00:24]} 44.
Kh4 {[%clk 00:01:41]} Nf2 {[%clk 00:10:04] [%emt 00:00:20]} 45. Qe6 {[%clk
00:00:55] [%emt 00:01:17]} Kh8 {[%clk 00:09:03] [%emt 00:01:30]} 46. Qh6+ {[%clk
00:00:52] [%emt 00:00:33]} Rh7 {[%clk 00:08:55] [%emt 00:00:39]} 47. Qc6 {[%clk
00:00:49] [%emt 00:00:33]} Rh3+ {[%clk 00:09:14] [%emt 00:00:10]} 48. Kg5 {[%clk
00:01:17] [%emt 00:00:02]} Rg7+ {[%clk 00:09:39] [%emt 00:00:05]} 49. Kf5 {[%clk
00:01:25] [%emt 00:00:22]} Nxg4 {[%clk 00:10:07] [%emt 00:00:02]} 50. Kf4 {[%clk
00:01:21] [%emt 00:00:34]} Rxe3 {[%clk 00:07:11] [%emt 00:03:26]} 51. Qa8+
{[%clk 00:00:36] [%emt 00:01:16]} Kh7 {[%clk 00:06:54] [%emt 00:00:46]} 52. Qxa5
{[%clk 00:01:04] [%emt 00:00:02]} Ree7 {[%clk 00:07:14] [%emt 00:00:09]} 53. Qa6
{[%clk 00:00:50] [%emt 00:00:45]} Nf2 {[%clk 00:07:18] [%emt 00:00:25]} 54. Kf3
{[%clk 00:00:50] [%emt 00:00:30]} Rgf7+ {[%clk 00:07:34] [%emt 00:00:14]} 55.
Kg2 {[%clk 00:01:19] [%emt 00:00:02]} Ne4 {[%clk 00:07:25] [%emt 00:00:39]} 56.
Qg6+ {[%clk 00:00:53] [%emt 00:00:56]} Kh8 {[%clk 00:07:53]} 57. h6 {[%clk
00:00:36] [%emt 00:00:48]} Rf2+ {[%clk 00:07:24] [%emt 00:00:59]} 58. Kh3 {[%clk
00:00:36] [%emt 00:00:29]} Rf6 {[%clk 00:07:46] [%emt 00:00:07]} 59. Qh5 {[%clk
00:00:51] [%emt 00:00:16]} Kh7 {[%clk 00:07:59] [%emt 00:00:18]} 60. Qb5 {[%clk
00:01:19] [%emt 00:00:02]} Rxh6+ {[%clk 00:08:02] [%emt 00:00:26]} 61. Kg4
{[%clk 00:01:35] [%emt 00:00:13]} Rg6+ {[%clk 00:08:12] [%emt 00:00:21]} 62. Kh4
{[%clk 00:01:14] [%emt 00:00:52]} Reg7 {[%clk 00:08:36] [%emt 00:00:06]} 63. Qf5
{[%clk 00:01:42] [%emt 00:00:02]} Nd6 {[%clk 00:08:42] [%emt 00:00:24]} 64. Qd3
{[%clk 00:01:19] [%emt 00:00:53]} Kh8 {[%clk 00:09:07] [%emt 00:00:06]} 65. Kh5
{[%clk 00:01:28] [%emt 00:00:20]} Rg5+ {[%clk 00:09:35] [%emt 00:00:02]} 0-1

[Site "Europe Echecs"]

[Event "Saint Louis Masters"]
[Date "2024.12.07"]
[White "Batsuren, Dambasuren"]
[Black "Quesada Perez, Yasser"]
[WhiteElo "2531"]
[BlackElo "2577"]
[Round "9.9"]
[Result "0-1"]
[TimeControl "5400+30"]

1. d4 {[%clk 01:30:58] [%emt 00:00:02]} d5 {[%clk 01:30:22] [%emt 00:00:34]} 2.
c4 {[%clk 01:31:22] [%emt 00:00:10]} e6 {[%clk 01:30:47] [%emt 00:00:05]} 3. Nc3
{[%clk 01:28:52] [%emt 00:03:00]} Bb4 {[%clk 01:31:02] [%emt 00:00:14]} 4. Nf3
{[%clk 01:27:45] [%emt 00:01:37]} dxc4 {[%clk 01:30:39] [%emt 00:00:53]} 5. e3
{[%clk 01:26:11] [%emt 00:02:04]} b5 {[%clk 01:30:43] [%emt 00:00:27]} 6. a4
{[%clk 01:26:23] [%emt 00:00:18]} c6 {[%clk 01:30:48] [%emt 00:00:25]} 7. Bd2
{[%clk 01:26:37] [%emt 00:00:15]} a5 {[%clk 01:30:43] [%emt 00:00:35]} 8. axb5
{[%clk 01:26:45] [%emt 00:00:23]} Bxc3 {[%clk 01:30:59] [%emt 00:00:14]} 9. Bxc3
{[%clk 01:27:06] [%emt 00:00:09]} cxb5 {[%clk 01:31:25] [%emt 00:00:04]} 10. b3
{[%clk 01:27:26] [%emt 00:00:09]} Bb7 {[%clk 01:31:46] [%emt 00:00:10]} 11. bxc4
{[%clk 01:27:47] [%emt 00:00:09]} b4 {[%clk 01:32:11] [%emt 00:00:05]} 12. Bb2
{[%clk 01:28:08] [%emt 00:00:08]} Nf6 {[%clk 01:32:26] [%emt 00:00:15]} 13. Bd3
{[%clk 01:28:31] [%emt 00:00:07]} O-O {[%clk 01:32:10] [%emt 00:00:46]} 14. O-O
{[%clk 01:28:54] [%emt 00:00:07]} Nbd7 {[%clk 01:32:16] [%emt 00:00:25]} 15. Nd2
{[%clk 01:28:54] [%emt 00:00:29]} Nc5 {[%clk 01:26:46] [%emt 00:06:00]} 16. Bc2
{[%clk 01:26:17] [%emt 00:03:07]} Nce4 {[%clk 01:26:44] [%emt 00:00:33]} 17. f3
{[%clk 01:26:29] [%emt 00:00:17]} Nxd2 {[%clk 01:26:22] [%emt 00:00:53]} 18.
Qxd2 {[%clk 01:26:52] [%emt 00:00:07]} Qe7 {[%clk 01:25:35] [%emt 00:01:17]} 19.
Ra2 {[%clk 01:18:33] [%emt 00:08:49]} Rfc8 {[%clk 01:17:14] [%emt 00:08:51]} 20.
Bb3 {[%clk 01:06:59] [%emt 00:12:03]} Nd7 {[%clk 01:01:49] [%emt 00:15:56]} 21.
Rfa1 {[%clk 01:00:26] [%emt 00:07:03]} Qd8 {[%clk 01:01:37] [%emt 00:00:42]} 22.
Qf2 {[%clk 00:56:21] [%emt 00:04:33]} Ra6 {[%clk 00:41:45] [%emt 00:20:23]} 23.
Qg3 {[%clk 00:39:45] [%emt 00:17:06]} e5 {[%clk 00:38:21] [%emt 00:03:55]} 24.
c5 {[%clk 00:37:41] [%emt 00:02:33]} e4 {[%clk 00:33:53] [%emt 00:04:59]} 25.
fxe4 {[%clk 00:32:10] [%emt 00:06:01]} Rg6 {[%clk 00:32:12] [%emt 00:02:11]} 26.
Qf3 {[%clk 00:20:42] [%emt 00:11:57]} Rf6 {[%clk 00:31:25] [%emt 00:01:18]} 27.
Qh5 {[%clk 00:15:10] [%emt 00:06:01]} Bxe4 {[%clk 00:31:09] [%emt 00:00:47]} 28.
Rxa5 {[%clk 00:15:29] [%emt 00:00:11]} Rg6 {[%clk 00:30:43] [%emt 00:00:56]} 29.
g3 {[%clk 00:15:47] [%emt 00:00:11]} Nf6 {[%clk 00:30:05] [%emt 00:01:09]} 30.
Qe5 {[%clk 00:14:23] [%emt 00:01:51]} Qd7 {[%clk 00:27:37] [%emt 00:03:01]} 31.
Bc4 {[%clk 00:13:17] [%emt 00:01:36]} Rh6 {[%clk 00:24:51] [%emt 00:03:16]} 32.
Bxf7+ {[%clk 00:03:22] [%emt 00:10:25]} Qxf7 {[%clk 00:24:24] [%emt 00:00:58]}
33. Ra7 {[%clk 00:03:47] [%emt 00:00:05]} Qb3 {[%clk 00:23:07] [%emt 00:01:45]}
34. Bc3 {[%clk 00:02:13] [%emt 00:02:04]} bxc3 {[%clk 00:21:58] [%emt 00:01:40]}
0-1

[Site "Europe Echecs"]

[Event "Saint Louis Masters"]
[Date "2024.12.07"]
[White "Harsha Bharathakoti"]
[Black "Swiercz, Dariusz"]
[WhiteElo "2531"]
[BlackElo "2574"]
[Round "9.10"]
[Result "1/2-1/2"]
[TimeControl "5400+30"]

1. d4 {[%clk 01:30:55] [%emt 00:00:04]} Nf6 {[%clk 01:24:51] [%emt 00:06:09]} 2.
c4 {[%clk 01:31:18] [%emt 00:00:07]} e6 {[%clk 01:25:17] [%emt 00:00:04]} 3. Nf3
{[%clk 01:31:07] [%emt 00:00:40]} d5 {[%clk 01:25:33] [%emt 00:00:15]} 4. Nc3
{[%clk 01:31:29] [%emt 00:00:08]} Nbd7 {[%clk 01:24:48] [%emt 00:01:16]} 5. Qc2
{[%clk 01:31:03] [%emt 00:00:55]} c6 {[%clk 01:21:09] [%emt 00:04:08]} 6. e4
{[%clk 01:15:49] [%emt 00:15:44]} Nxe4 {[%clk 01:20:42] [%emt 00:00:58]} 7. Nxe4
{[%clk 01:16:14] [%emt 00:00:05]} dxe4 {[%clk 01:21:10] [%emt 00:00:02]} 8. Qxe4
{[%clk 01:16:38] [%emt 00:00:06]} Bb4+ {[%clk 01:21:37] [%emt 00:00:03]} 9. Bd2
{[%clk 01:17:01] [%emt 00:00:06]} Bxd2+ {[%clk 01:22:03] [%emt 00:00:05]} 10.
Nxd2 {[%clk 01:17:26] [%emt 00:00:05]} c5 {[%clk 01:22:16] [%emt 00:00:18]} 11.
dxc5 {[%clk 01:12:59] [%emt 00:04:56]} Qa5 {[%clk 01:17:02] [%emt 00:05:44]} 12.
a3 {[%clk 01:01:27] [%emt 00:12:02]} Qxc5 {[%clk 01:15:38] [%emt 00:01:54]} 13.
b4 {[%clk 01:00:28] [%emt 00:01:29]} Qe5 {[%clk 01:06:47] [%emt 00:09:21]} 14.
Qxe5 {[%clk 00:53:21] [%emt 00:07:37]} Nxe5 {[%clk 01:06:55] [%emt 00:00:22]}
15. Be2 {[%clk 00:30:11] [%emt 00:23:40]} b6 {[%clk 00:56:47] [%emt 00:10:39]}
16. f4 {[%clk 00:19:45] [%emt 00:10:55]} Ng6 {[%clk 00:46:34] [%emt 00:10:44]}
17. Bf3 {[%clk 00:16:21] [%emt 00:03:54]} Rb8 {[%clk 00:46:40] [%emt 00:00:25]}
18. g3 {[%clk 00:13:19] [%emt 00:03:31]} e5 {[%clk 00:39:57] [%emt 00:07:13]}
19. fxe5 {[%clk 00:09:08] [%emt 00:04:41]} Nxe5 {[%clk 00:40:15] [%emt
00:00:12]} 20. Bd5 {[%clk 00:09:34] [%emt 00:00:03]} Bb7 {[%clk 00:39:35] [%emt
00:01:11]} 21. Bxb7 {[%clk 00:09:53] [%emt 00:00:11]} Rxb7 {[%clk 00:40:02]
[%emt 00:00:03]} 22. O-O {[%clk 00:08:52] [%emt 00:01:30]} O-O {[%clk 00:33:34]
[%emt 00:06:59]} 23. Rac1 {[%clk 00:09:18] [%emt 00:00:04]} Rc7 {[%clk 00:33:43]
[%emt 00:00:21]} 24. c5 {[%clk 00:06:10] [%emt 00:03:38]} bxc5 {[%clk 00:33:08]
[%emt 00:01:05]} 25. Rxc5 {[%clk 00:06:37] [%emt 00:00:04]} Rxc5 {[%clk
00:33:19] [%emt 00:00:18]} 26. bxc5 {[%clk 00:07:03] [%emt 00:00:04]} Rb8 {[%clk
00:24:37] [%emt 00:09:12]} 27. Nf3 {[%clk 00:06:40] [%emt 00:00:53]} Nxf3+
{[%clk 00:19:56] [%emt 00:05:12]} 28. Rxf3 {[%clk 00:07:07] [%emt 00:00:03]} Kf8
{[%clk 00:20:20] [%emt 00:00:06]} 29. Rf4 {[%clk 00:04:25] [%emt 00:03:11]} Rb5
{[%clk 00:13:46] [%emt 00:07:05]} 30. Rb4 {[%clk 00:03:00] [%emt 00:01:55]} a6
{[%clk 00:09:42] [%emt 00:04:34]} 31. Ra4 {[%clk 00:03:25] [%emt 00:00:04]} a5
{[%clk 00:08:09] [%emt 00:02:04]} 32. c6 {[%clk 00:03:27] [%emt 00:00:28]} Ke7
{[%clk 00:02:39] [%emt 00:05:59]} 33. Rd4 {[%clk 00:01:41] [%emt 00:02:16]} Rc5
{[%clk 00:00:49] [%emt 00:02:20]} 34. Rd7+ {[%clk 00:02:07] [%emt 00:00:04]} Ke6
{[%clk 00:01:16] [%emt 00:00:04]} 35. Ra7 {[%clk 00:02:32] [%emt 00:00:04]} Rxc6
{[%clk 00:01:12] [%emt 00:00:34]} 1/2-1/2